bitfinex-derivatives/quotes_BNBF0:USTF0_20250220
["timestamp","ask_amount","ask_price","bid_price","bid_amount"]
[1740081813235,3.03224716,655.64,655.05,1.130437]
[1740081813435,3.03224716,655.63,655.05,1.130437]
[1740081813638,3.03224716,655.62,655.05,1.130437]
[1740081813835,3.03224716,655.61,655.05,1.130437]
[1740081814039,3.03224716,655.6,655.05,1.130437]
[1740081814240,3.03224716,655.59,655.05,1.130437]
[1740081814438,3.03224716,655.58,655.05,1.130437]
[1740081814739,5.23881332,655.57,655.05,1.130437]
[1740081814938,3.03224716,655.56,655.05,1.130437]
[1740081815140,3.03224716,655.55,655.05,1.130437]
[1740081815342,3.03224716,655.54,655.05,1.130437]
[1740081815539,3.03224716,655.53,655.05,1.130437]
[1740081815844,3.03224716,655.52,655.26,1.130437]
[1740081816045,3.03224716,655.51,655.26,1.130437]
[1740081816339,3.03224716,655.5,655.26,1.130437]
[1740081816539,3.03224716,655.49,655.26,1.130437]
[1740081816742,3.03224716,655.48,655.26,1.130437]
[1740081816938,3.03224716,655.47,655.26,1.130437]
[1740081817143,3.03224716,655.46,655.26,1.130437]
[1740081817342,3.03224716,655.45,655.26,1.130437]
[1740081817542,2.20656616,655.51,655.26,1.130437]
[1740081817741,3.03205069,655.5,655.26,1.130437]
[1740081817941,3.03205069,655.49,655.28,1.130437]
[1740081818142,3.03205069,655.48,655.28,1.130437]
[1740081818342,3.03205069,655.47,655.28,1.130437]
[1740081818542,3.03205069,655.46,655.28,1.130437]
[1740081818742,3.03205069,655.45,655.28,1.130437]
[1740081818941,2.20656616,655.5,655.28,1.130437]
[1740081819143,3.03202608,655.49,655.28,1.130437]
[1740081819442,3.03202608,655.48,655.28,1.130437]
[1740081819643,3.03202608,655.47,655.28,1.130437]
[1740081819845,2.20656616,655.48,655.28,1.130437]
[1740081820046,3.03198552,655.47,655.28,1.130437]
[1740081820346,2.20656616,655.48,655.28,1.130437]
[1740081820547,3.03195241,655.47,655.21,1.130437]
[1740081820845,2.20656616,655.48,655.21,1.130437]
[1740081821242,0.637,655.68,655.21,1.130437]
[1740081821443,3.03167454,655.67,655.21,1.130437]
[1740081821641,3.03167454,655.66,655.21,1.130437]
[1740081821845,3.03167454,655.65,655.21,1.130437]
[1740081822140,3.03167454,655.64,655.21,1.130437]
[1740081822345,3.03167454,655.63,655.21,1.130437]
[1740081822542,3.03167454,655.62,655.21,1.130437]
[1740081822742,3.03167454,655.61,655.21,1.130437]
[1740081822941,3.03167454,655.6,655.21,1.130437]
[1740081823144,3.03167454,655.59,655.21,1.130437]
[1740081823342,3.03167454,655.58,655.08,1.130437]
[1740081823542,3.03167454,655.57,655.08,1.130437]
[1740081823745,3.03167454,655.56,655.08,1.130437]
[1740081823944,3.03167454,655.55,655.08,1.130437]
[1740081824142,3.03167454,655.54,655.08,1.130437]
[1740081824346,3.03167454,655.53,655.08,1.130437]
[1740081824546,3.03167454,655.52,655.08,1.130437]
[1740081824739,3.03167454,655.51,655.08,1.130437]
[1740081824944,3.03167454,655.5,655.08,1.130437]
[1740081825146,2.20609696,655.53,655.08,1.130437]
[1740081825441,3.03228867,655.52,655.08,1.130437]
[1740081825645,3.03228867,655.51,655.08,1.130437]
[1740081825847,3.03228867,655.5,655.07,1.130437]
[1740081826043,3.03228867,655.49,655.07,1.130437]
[1740081826247,3.03228867,655.48,655.07,1.130437]
[1740081826447,2.20609696,655.5,655.07,1.130437]
[1740081826742,3.03263141,655.49,655.07,1.130437]
[1740081826940,3.03267353,655.48,655.07,1.130437]
[1740081827140,2.20609696,655.5,655.07,1.130437]
[1740081827345,3.03304993,655.49,655.07,1.130437]
[1740081827545,3.03304993,655.48,655.07,1.130437]
[1740081827744,2.20609696,655.49,655.07,1.130437]
[1740081828244,3.03303923,655.48,655.07,1.130437]
[1740081828451,2.20609696,655.49,655.07,1.130437]
[1740081828653,3.03345945,655.48,655.07,1.130437]
[1740081828843,2.20609696,655.49,655.07,1.130437]
[1740081829145,3.03344681,655.48,655.06,1.130437]
[1740081829344,3.03344681,655.47,655.06,1.130437]
[1740081829652,2.20609696,655.48,655.06,1.130437]
[1740081829847,3.03385613,655.47,655.06,1.130437]
[1740081830044,2.20609696,655.48,655.06,1.130437]
[1740081830245,3.03387386,655.47,655.06,1.130437]
[1740081830443,2.20609696,655.48,655.06,1.130437]
[1740081830645,3.03432929,655.47,655.06,1.130437]
[1740081830846,2.20609696,655.48,655.06,1.130437]
[1740081831050,3.03433547,655.47,655.06,1.130437]
[1740081831251,2.20609696,655.48,655.3,1.130437]
[1740081831445,3.03482814,655.47,655.3,1.130437]
[1740081831647,0.637,655.8,655.3,1.130437]
[1740081831851,5.24329157,655.72,655.3,1.130437]
[1740081832051,3.03484405,655.71,655.3,1.130437]
[1740081832251,3.03484405,655.7,655.3,1.130437]
[1740081832446,3.03484405,655.69,655.3,1.130437]
[1740081832656,3.03484405,655.68,655.3,1.130437]
[1740081832851,3.03484405,655.67,655.3,1.130437]
[1740081833051,3.03484405,655.66,655.3,1.130437]
[1740081833247,3.03484405,655.65,655.3,1.130437]
[1740081833446,5.24329157,655.64,655.3,1.130437]
[1740081833647,3.03484405,655.63,655.3,1.130437]
[1740081833847,3.03484405,655.62,655.3,1.130437]
[1740081834052,3.03484405,655.61,655.3,1.130437]
[1740081834250,3.03484405,655.6,655.3,1.130437]
[1740081834454,3.03484405,655.59,655.3,1.130437]
[1740081834653,3.03484405,655.58,655.3,1.130437]
[1740081834953,5.24329157,655.57,655.3,1.130437]
[1740081835149,3.03484405,655.56,655.3,1.130437]
[1740081835356,3.03484405,655.55,655.3,1.130437]
[1740081835655,3.03484405,655.54,655.3,1.130437]
[1740081835952,3.03484405,655.53,655.3,1.130437]
[1740081836255,3.03484405,655.52,655.3,1.130437]
[1740081836455,3.03484405,655.51,655.3,1.130437]
[1740081836655,3.03484405,655.5,655.18,1.130437]
[1740081836854,3.03484405,655.49,655.18,1.130437]
[1740081837050,3.03484405,655.48,655.18,1.130437]
[1740081837254,3.03484405,655.47,655.18,1.130437]
[1740081837447,2.20844752,655.5,655.18,1.130437]
[1740081837652,3.04000526,655.49,655.18,1.130437]
[1740081837852,3.04000526,655.48,655.18,1.130437]
[1740081838052,3.04000526,655.47,655.18,1.130437]
[1740081838253,2.20844752,655.5,655.18,1.130437]
[1740081838557,3.04078834,655.49,655.18,1.130437]
[1740081838756,3.04078834,655.48,655.18,1.130437]
[1740081838955,3.04078834,655.47,655.18,1.130437]
[1740081839157,2.2127547,655.49,655.2,1.130437]
[1740081841054,1.744,655.73,655.2,1.130437]
[1740081841253,3.04115461,655.72,655.2,1.130437]
[1740081841454,3.04115461,655.71,655.2,1.130437]
[1740081841655,3.04115461,655.7,655.2,1.130437]
[1740081841957,3.04115461,655.69,655.23,1.130437]
[1740081842157,3.04115461,655.68,655.23,1.130437]
[1740081842357,3.04115461,655.67,655.23,1.130437]
[1740081842557,3.04115461,655.66,655.23,1.130437]
[1740081842757,3.04115461,655.65,655.23,1.130437]
[1740081842958,3.04115461,655.64,655.23,1.130437]
[1740081843159,3.04115461,655.63,655.23,1.130437]
[1740081843358,3.04115461,655.62,655.23,1.130437]
[1740081843656,3.04115461,655.61,655.23,1.130437]
[1740081843854,3.04115461,655.6,655.23,1.130437]
[1740081844055,3.04115461,655.59,655.23,1.130437]
[1740081844258,3.04115461,655.58,655.23,1.130437]
[1740081844462,3.04115461,655.57,655.35,1.130437]
[1740081844755,3.04115461,655.56,655.35,1.130437]
[1740081844961,3.04115461,655.55,655.35,1.130437]
[1740081845161,5.25415749,655.54,655.35,1.130437]
[1740081845358,3.04115461,655.53,655.35,1.130437]
[1740081845555,3.04115461,655.52,655.35,1.130437]
[1740081845755,3.04115461,655.51,655.35,1.130437]
[1740081845958,2.21300288,655.54,655.35,1.130437]
[1740081846262,3.04293456,655.53,655.35,1.130437]
[1740081846459,3.04293456,655.52,655.35,1.130437]
[1740081846656,2.21300288,655.54,655.35,1.130437]
[1740081846861,3.04288794,655.53,655.35,1.130437]
[1740081847056,0.637,655.8,655.35,1.130437]
[1740081847264,5.25707469,655.79,655.32,1.130437]
[1740081847464,3.04286248,655.78,655.32,1.130437]
[1740081847658,3.04286248,655.77,655.32,1.130437]
[1740081847861,3.04286248,655.76,655.32,1.130437]
[1740081848061,3.04286248,655.75,655.32,1.130437]
[1740081848262,3.04286248,655.74,655.32,1.130437]
[1740081848461,3.04286248,655.73,655.32,1.130437]
[1740081848662,3.04286248,655.72,655.32,1.130437]
[1740081848860,3.04286248,655.71,655.32,1.130437]
[1740081849060,3.04286248,655.7,655.32,1.130437]
[1740081849262,3.04286248,655.69,655.32,1.130437]
[1740081849466,3.04286248,655.68,655.32,1.130437]
[1740081849664,3.04286248,655.67,655.32,1.130437]
[1740081849868,3.04286248,655.66,655.32,1.130437]
[1740081850167,3.04286248,655.65,655.32,1.130437]
[1740081850366,3.04286248,655.64,655.32,1.130437]
[1740081850567,3.04286248,655.64,655.13,1.13613397]
[1740081850568,3.04286248,655.63,655.33,1.130437]
[1740081850868,3.04286248,655.62,655.33,1.130437]
[1740081851062,3.04286248,655.61,655.33,1.130437]
[1740081851265,3.04286248,655.6,655.33,1.130437]
[1740081851461,3.04286248,655.59,655.33,1.130437]
[1740081851667,2.21421221,655.63,655.33,1.130437]
[1740081851967,3.04165109,655.62,655.33,1.130437]
[1740081852167,3.04165109,655.61,655.33,1.130437]
[1740081852367,3.04165109,655.6,655.33,1.130437]
[1740081852570,3.04165109,655.59,655.33,1.130437]
[1740081852771,2.21421221,655.62,655.33,1.130437]
[1740081852966,3.04117241,655.61,655.33,1.130437]
[1740081853165,2.21421221,655.62,655.33,1.130437]
[1740081853166,3.04117241,655.6,655.33,1.130437]
[1740081853363,3.04117241,655.59,655.33,1.130437]
[1740081853670,3.0407798,655.58,655.33,1.130437]
[1740081853970,2.21421221,655.62,655.33,1.130437]
[1740081854171,3.04079184,655.61,655.33,1.130437]
[1740081854368,3.04079184,655.6,655.33,1.130437]
[1740081854567,3.04079184,655.59,655.19,1.130437]
[1740081854765,0.637,655.8,655.19,1.130437]
[1740081854964,3.04040888,655.79,655.19,1.130437]
[1740081855166,3.04040888,655.78,655.19,1.130437]
[1740081855369,3.04040888,655.77,655.19,1.130437]
[1740081855567,3.04040888,655.76,655.19,1.130437]
[1740081855876,3.04040888,655.75,655.19,1.130437]
[1740081856174,3.04040888,655.74,655.19,1.130437]
[1740081856370,3.04040888,655.73,655.19,1.130437]
[1740081856566,3.04040888,655.72,655.19,1.130437]
[1740081856771,3.04040888,655.71,655.19,1.130437]
[1740081856974,3.04040888,655.7,655.19,1.130437]
[1740081857172,3.04040888,655.69,655.19,1.130437]
[1740081857471,3.04040888,655.68,655.19,1.130437]
[1740081857668,3.04040888,655.67,655.17,1.130437]
[1740081857867,3.04040888,655.66,655.17,1.130437]
[1740081858070,3.04040888,655.65,655.17,1.130437]
[1740081858274,3.04040888,655.64,655.17,1.130437]
[1740081858466,3.04040888,655.63,655.17,1.130437]
[1740081858670,3.04040888,655.62,655.17,1.130437]
[1740081858871,3.04040888,655.61,655.17,1.130437]
[1740081859068,3.04040888,655.6,655.17,1.130437]
[1740081859367,3.04040888,655.59,655.17,1.130437]
[1740081859570,2.21208399,655.64,655.17,1.130437]
[1740081859770,3.03903253,655.63,655.21,1.130437]
[1740081859969,3.03903253,655.62,655.21,1.130437]
[1740081860166,3.03903253,655.61,655.21,1.130437]
[1740081860371,3.03903253,655.6,655.21,1.130437]
[1740081860675,3.03903253,655.59,655.21,1.130437]
[1740081860869,2.21208399,655.61,655.21,1.130437]
[1740081861069,3.03882693,655.6,655.21,1.130437]
[1740081861271,3.03882693,655.59,655.21,1.130437]
[1740081861468,2.21208399,655.61,655.21,1.130437]
[1740081861668,3.03865021,655.6,655.21,1.130437]
[1740081861868,3.03865021,655.59,655.19,1.130437]
[1740081862073,3.03865021,655.58,655.19,1.130437]
[1740081862274,2.21208399,655.59,655.19,1.130437]
[1740081862472,3.0385077,655.58,655.19,1.130437]
[1740081862773,2.21208399,655.59,655.19,1.130437]
[1740081862975,3.0384865,655.58,655.19,1.130437]
[1740081863169,2.21208399,655.59,655.19,1.130437]
[1740081863373,3.03845027,655.58,655.19,1.130437]
[1740081863575,3.03845027,655.57,655.19,1.130437]
[1740081863773,2.21208399,655.59,655.19,1.130437]
[1740081864074,2.21208399,655.57,655.19,1.130437]
[1740081864776,2.21208399,655.57,655.21,1.130437]
[1740081865576,1.366,655.9,655.21,1.130437]
[1740081865878,3.0383352,655.89,655.21,1.130437]
[1740081866070,3.0383352,655.88,655.21,1.130437]
[1740081866274,3.0383352,655.87,655.21,1.130437]
[1740081866470,3.0383352,655.86,655.21,1.130437]
[1740081866671,3.0383352,655.85,655.21,1.130437]
[1740081866876,3.0383352,655.84,655.21,1.130437]
[1740081867072,3.0383352,655.83,655.21,1.130437]
[1740081867377,3.0383352,655.82,655.21,1.130437]
[1740081867577,3.0383352,655.81,655.21,1.130437]
[1740081867778,3.0383352,655.8,655.21,1.130437]
[1740081868079,3.0383352,655.79,655.36,1.130437]
[1740081868277,3.0383352,655.78,655.36,1.130437]
[1740081868578,3.0383352,655.77,655.36,1.130437]
[1740081868778,3.0383352,655.76,655.36,1.130437]
[1740081868973,3.0383352,655.75,655.36,1.130437]
[1740081869175,3.0383352,655.74,655.36,1.130437]
[1740081869376,3.0383352,655.73,655.36,1.130437]
[1740081869576,3.0383352,655.72,655.36,1.130437]
[1740081869777,3.0383352,655.71,655.36,1.130437]
[1740081869974,3.0383352,655.7,655.36,1.130437]
[1740081870278,3.0383352,655.69,655.36,1.130437]
[1740081870479,3.0383352,655.68,655.33,1.130437]
[1740081870679,3.0383352,655.67,655.33,1.130437]
[1740081870874,3.0383352,655.66,655.33,1.130437]
[1740081871072,3.0383352,655.65,655.33,1.130437]
[1740081871277,3.0383352,655.64,655.33,1.130437]
[1740081871477,3.0383352,655.63,655.33,1.130437]
[1740081871679,3.0383352,655.62,655.33,1.130437]
[1740081871979,3.0383352,655.61,655.33,1.130437]
[1740081872179,3.0383352,655.6,655.33,1.130437]
[1740081872376,3.0383352,655.59,655.33,1.130437]
[1740081872574,3.0383352,655.58,655.33,1.130437]
[1740081872779,5.24917096,655.57,655.33,1.130437]
[1740081872978,3.0383352,655.56,655.33,1.130437]
[1740081873180,2.21083576,655.57,655.34,1.130437]
[1740081873181,3.0383352,655.55,655.34,1.130437]
[1740081873372,3.0383352,655.54,655.34,1.130437]
[1740081873578,3.0383352,655.53,655.34,1.130437]
[1740081873775,2.21083576,655.57,655.34,1.130437]
[1740081873978,3.03879986,655.56,655.34,1.130437]
[1740081874180,3.03879986,655.55,655.34,1.130437]
[1740081874378,3.03882579,655.54,655.34,1.130437]
[1740081874578,2.21083576,655.57,655.34,1.130437]
[1740081874782,3.03881982,655.56,655.34,1.130437]
[1740081874977,3.03881982,655.55,655.34,1.130437]
[1740081875181,5.25009878,655.54,655.34,1.130437]
[1740081875382,2.21127896,655.54,655.19,1.130437]
[1740081876084,3.03894748,655.53,655.19,1.130437]
[1740081876286,3.03894748,655.52,655.19,1.130437]
[1740081876485,3.03894748,655.51,655.19,1.130437]
[1740081876784,3.03894748,655.5,655.19,1.130437]
[1740081876983,3.03894748,655.49,655.19,1.130437]
[1740081877179,3.03894748,655.48,655.19,1.130437]
[1740081877385,3.03894748,655.47,655.19,1.130437]
[1740081877685,1.366,655.9,655.19,1.130437]
[1740081877686,5.25022644,655.46,655.19,1.130437]
[1740081877985,3.03894748,655.45,655.09,1.130437]
[1740081878282,2.21127896,655.46,655.09,1.130437]
[1740081878485,3.0394432,655.45,655.09,1.130437]
[1740081878679,3.0394432,655.44,655.09,1.130437]
[1740081878977,2.21127896,655.46,655.09,1.130437]
[1740081879179,3.03945711,655.45,655.09,1.130437]
[1740081879378,2.21127896,655.46,655.09,1.130437]
[1740081879578,3.03936689,655.45,655.09,1.130437]
[1740081879783,3.03936689,655.44,655.09,1.130437]
[1740081879984,3.03936689,655.43,655.09,1.130437]
[1740081880184,3.03936689,655.42,655.09,1.130437]
[1740081880384,3.03936689,655.41,655.09,1.130437]
[1740081880584,3.03936689,655.4,655.09,1.130437]
[1740081880788,3.03936689,655.39,655.09,1.130437]
[1740081880985,3.03936689,655.38,655.09,1.130437]
[1740081881281,3.03936689,655.37,655.09,1.130437]
[1740081881484,3.03936689,655.36,655.09,1.130437]
[1740081881778,3.03936689,655.35,655.09,1.130437]
[1740081881986,3.03936689,655.34,655.02,1.130437]
[1740081882185,2.21209291,655.43,655.02,1.130437]
[1740081882484,3.03796362,655.42,655.02,1.130437]
[1740081882686,3.03796362,655.41,655.02,1.130437]
[1740081882887,3.03796362,655.4,655.02,1.130437]
[1740081883087,3.03796362,655.39,655.02,1.130437]
[1740081883386,3.03796362,655.38,655.02,1.130437]
[1740081883589,3.03796362,655.37,655.02,1.130437]
[1740081883886,3.03796362,655.36,655.02,1.130437]
[1740081884087,2.21209291,655.36,655.02,1.130437]
[1740081884487,3.0370588,655.35,655.02,1.130437]
[1740081884689,2.21209291,655.36,655.02,1.130437]
[1740081884889,3.03703649,655.35,655.02,1.130437]
[1740081885088,2.21209291,655.36,654.97,0.30535749]
[1740081885289,3.03696372,655.35,654.97,0.30535749]
[1740081885591,3.03696372,655.34,654.97,0.30535749]
[1740081885790,1.605,655.75,654.97,0.30535749]
[1740081886089,3.03669234,655.74,654.97,0.30535749]
[1740081886291,3.03669234,655.73,654.97,0.30535749]
[1740081886489,3.03669234,655.72,654.97,0.30535749]
[1740081886686,3.03669234,655.71,654.97,0.30535749]
[1740081886891,3.03669234,655.7,654.97,0.30535749]
[1740081887091,3.03669234,655.69,654.97,0.30535749]
[1740081887291,3.03669234,655.68,654.97,0.30535749]
[1740081887487,3.03669234,655.67,654.97,0.30535749]
[1740081887685,3.03669234,655.66,654.97,0.30535749]
[1740081887890,3.03669234,655.65,654.97,0.30535749]
[1740081888189,1.2,655.7,654.97,0.30535749]
[1740081888190,5.24631061,655.64,654.97,0.30535749]
[1740081888390,3.03669234,655.63,654.97,0.30535749]
[1740081888589,3.03669234,655.62,654.97,0.30535749]
[1740081888786,3.03669234,655.61,654.97,0.30535749]
[1740081889087,3.03669234,655.6,654.97,0.30535749]
[1740081889297,3.03669234,655.59,654.97,0.30535749]
[1740081889493,3.03669234,655.58,654.97,0.30535749]
[1740081889694,3.03669234,655.57,654.97,0.30535749]
[1740081889896,3.03669234,655.56,654.97,0.30535749]
[1740081890095,3.03669234,655.55,654.97,0.30535749]
[1740081890300,3.03669234,655.54,654.97,0.30535749]
[1740081890496,3.03669234,655.53,654.97,0.30535749]
[1740081890700,3.03669234,655.52,654.97,0.30535749]
[1740081891001,3.03669234,655.51,654.97,0.30535749]
[1740081891198,3.03669234,655.5,654.97,0.30535749]
[1740081891399,3.03669234,655.49,654.97,0.30535749]
[1740081891597,3.03669234,655.48,654.97,0.30535749]
[1740081891802,3.03669234,655.47,654.97,0.30535749]
[1740081891997,3.03669234,655.46,654.97,0.30535749]
[1740081892197,3.03669234,655.45,654.97,0.30535749]
[1740081892403,3.03669234,655.44,654.97,0.30535749]
[1740081892602,3.03669234,655.43,654.97,0.30535749]
[1740081892803,3.03669234,655.42,654.97,0.30535749]
[1740081893005,3.03669234,655.41,654.97,0.30535749]
[1740081893198,3.03669234,655.4,654.97,0.30535749]
[1740081893402,3.03669234,655.39,654.97,0.30535749]
[1740081893599,3.03669234,655.38,654.97,0.30535749]
[1740081893798,3.03669234,655.37,654.97,0.30535749]
[1740081894101,2.20961827,655.38,654.97,0.30535749]
[1740081895711,3.03335512,655.37,654.97,0.30535749]
[1740081896009,2.20961827,655.38,654.97,0.30535749]
[1740081896202,3.521,655.7,654.97,1.43579449]
[1740081896401,3.03318784,655.69,654.97,1.43579449]
[1740081896607,3.03318784,655.68,654.97,1.43579449]
[1740081896810,3.03318784,655.67,654.97,1.43579449]
[1740081897008,3.03318784,655.66,654.97,1.43579449]
[1740081897210,3.03318784,655.65,654.97,1.43579449]
[1740081897403,3.03318784,655.64,654.97,1.43579449]
[1740081897607,3.03318784,655.63,654.97,1.43579449]
[1740081897809,3.03318784,655.62,654.97,1.43579449]
[1740081898104,3.03318784,655.61,654.97,1.43579449]
[1740081898405,3.03318784,655.6,654.97,0.30535749]
[1740081898609,3.03318784,655.59,654.97,0.30535749]
[1740081898810,3.03318784,655.58,654.97,0.30535749]
[1740081899005,3.03318784,655.57,654.97,0.30535749]
[1740081899310,3.03318784,655.56,654.97,0.30535749]
[1740081899504,3.03318784,655.55,654.97,0.30535749]
[1740081899705,3.03318784,655.54,654.97,0.30535749]
[1740081899912,3.03318784,655.53,654.97,0.30535749]
[1740081900109,3.03318784,655.52,654.97,0.30535749]
[1740081900314,3.03318784,655.51,654.97,0.30535749]
[1740081900618,3.03318784,655.5,654.97,0.30535749]
[1740081900815,3.03318784,655.49,654.97,0.30535749]
[1740081901015,3.03318784,655.48,654.97,0.30535749]
[1740081901315,3.03318784,655.47,654.97,0.30535749]
[1740081901515,3.03318784,655.46,654.97,0.30535749]
[1740081901716,3.03318784,655.45,654.97,0.30535749]
[1740081902015,3.03318784,655.44,654.97,0.30535749]
[1740081902210,3.03318784,655.43,654.97,0.30535749]
[1740081902411,3.03318784,655.42,654.97,0.30535749]
[1740081902609,3.03318784,655.41,654.97,0.30535749]
[1740081902812,3.03318784,655.4,654.97,0.30535749]
[1740081903015,3.03318784,655.39,654.97,0.30535749]
[1740081903317,2.2073288,655.43,654.97,0.30535749]
[1740081903318,3.03318784,655.38,655.07,1.130437]
[1740081903616,3.03318784,655.37,655.07,1.130437]
[1740081903916,3.03318784,655.36,655.07,1.130437]
[1740081904116,2.2073288,655.37,655.07,1.130437]
[1740081904416,3.03224728,655.36,655.07,1.130437]
[1740081904618,2.2073288,655.37,655.07,1.130437]
[1740081905111,3.521,655.7,655.07,1.130437]
[1740081905311,3.03163937,655.69,655.07,1.130437]
[1740081905513,3.03163937,655.68,655.07,1.130437]
[1740081905713,3.03163937,655.67,655.07,1.130437]
[1740081906014,3.03163937,655.66,655.1,1.130437]
[1740081906207,3.03163937,655.65,655.1,1.130437]
[1740081906414,3.03163937,655.64,655.1,1.130437]
[1740081906610,3.03163937,655.63,655.1,1.130437]
[1740081906915,3.03163937,655.62,655.1,1.130437]
[1740081907115,3.03163937,655.61,655.1,1.130437]
[1740081907309,3.03163937,655.6,655.1,1.130437]
[1740081907510,3.03163937,655.59,655.1,1.130437]
[1740081907707,3.03163937,655.58,655.1,1.130437]
[1740081907912,3.03163937,655.57,655.1,1.130437]
[1740081908115,3.03163937,655.56,655.1,1.130437]
[1740081908316,3.03163937,655.55,655.1,1.130437]
[1740081908516,3.03163937,655.54,655.1,1.130437]
[1740081908717,3.03163937,655.53,655.1,1.130437]
[1740081909017,3.03163937,655.52,655.08,1.130437]
[1740081909216,3.03163937,655.51,655.08,1.130437]
[1740081909417,3.03163937,655.5,655.08,1.130437]
[1740081909617,3.03163937,655.49,655.08,1.130437]
[1740081909817,3.03163937,655.48,655.08,1.130437]
[1740081910019,2.20616728,655.53,655.08,1.130437]
[1740081910320,3.03183422,655.52,655.08,1.130437]
[1740081910520,3.03183422,655.51,655.08,1.130437]
[1740081910820,2.20616728,655.53,654.97,0.30535749]
[1740081911021,2.20616728,655.5,654.97,0.30535749]
[1740081912619,3.03227144,655.49,654.97,0.30535749]
[1740081912817,5.23843872,655.48,654.97,0.30535749]
[1740081913015,2.20616728,655.48,654.97,0.30535749]
[1740081914323,3.03258407,655.47,654.97,0.30535749]
[1740081914524,3.03258407,655.46,654.97,0.30535749]
[1740081914724,5.23875135,655.45,654.97,0.30535749]
[1740081914921,3.03258407,655.44,654.97,0.30535749]
[1740081915118,2.20616728,655.45,654.97,0.30535749]
[1740081915322,3.03283775,655.44,654.97,0.30535749]
[1740081915621,3.03298426,655.43,654.97,0.30535749]
[1740081915820,2.20616728,655.45,654.97,0.30535749]
[1740081916023,3.03299933,655.44,654.97,0.30535749]
[1740081916221,3.03299933,655.43,654.97,0.30535749]
[1740081916425,2.20616728,655.43,654.97,0.30535749]
[1740081916625,2.20616728,655.43,655.08,1.130437]
[1740081917928,2.20616728,655.42,655.08,1.130437]
[1740081919323,1.745,655.8,655.08,1.130437]
[1740081919526,3.03414779,655.79,655.08,1.130437]
[1740081919724,3.03414779,655.78,655.08,1.130437]
[1740081919926,3.03414779,655.77,655.08,1.130437]
[1740081920122,3.03414779,655.76,655.08,1.130437]
[1740081920323,3.03414779,655.75,655.08,1.130437]
[1740081920523,3.03414779,655.74,655.08,1.130437]
[1740081920727,3.03414779,655.73,655.08,1.130437]
[1740081921029,3.03414779,655.72,655.08,1.130437]
[1740081921230,3.03414779,655.71,655.08,1.130437]
[1740081921430,3.03414779,655.7,655.08,1.130437]
[1740081921626,3.03414779,655.69,655.08,1.130437]
[1740081921832,3.03414779,655.68,655.13,1.130437]
[1740081922130,3.03414779,655.67,655.13,1.130437]
[1740081922331,3.03414779,655.66,655.13,1.130437]
[1740081922630,2.20798116,655.72,655.13,1.130437]
[1740081922631,3.03414779,655.65,655.13,1.130437]
[1740081922832,3.03414779,655.64,655.13,1.130437]
[1740081923131,3.03414779,655.63,655.13,1.130437]
[1740081923332,3.03414779,655.62,655.13,1.130437]
[1740081923531,3.03414779,655.61,655.13,1.130437]
[1740081923832,3.03414779,655.6,655.13,1.130437]
[1740081924032,3.03414779,655.59,655.13,1.130437]
[1740081924331,5.24212895,655.58,655.13,1.130437]
[1740081924630,3.03414779,655.57,655.13,1.130437]
[1740081924930,3.03414779,655.56,655.13,1.130437]
[1740081925130,3.03414779,655.55,655.13,1.130437]
[1740081925430,3.03414779,655.54,655.06,1.130437]
[1740081925632,3.03414779,655.53,655.06,1.130437]
[1740081925831,3.03414779,655.52,655.06,1.130437]
[1740081926028,3.03414779,655.51,655.06,1.130437]
[1740081926228,3.03414779,655.5,655.06,1.130437]
[1740081926429,3.03414779,655.49,655.06,1.130437]
[1740081926626,3.03672063,655.48,655.06,1.130437]
[1740081926827,3.03672063,655.47,655.06,1.130437]
[1740081927027,3.03672063,655.46,655.06,1.130437]
[1740081927230,5.24470179,655.45,655.06,1.130437]
[1740081927430,3.03672063,655.44,655.06,1.130437]
[1740081927631,3.03672063,655.43,655.06,1.130437]
[1740081927826,3.03672063,655.42,655.06,1.130437]
[1740081928026,3.03672063,655.41,655.06,1.130437]
[1740081928229,3.03672063,655.4,655.06,1.130437]
[1740081928430,2.20798116,655.45,655.06,1.130437]
[1740081928629,2.20798116,655.4,654.97,0.30535749]
[1740081929231,3.03770054,655.39,654.97,0.30535749]
[1740081929533,3.03779528,655.38,654.97,0.30535749]
[1740081929733,3.03784554,655.37,654.97,0.30535749]
[1740081929932,2.20798116,655.4,654.97,0.30535749]
[1740081930134,3.03785384,655.39,654.97,0.30535749]
[1740081930433,2.20798116,655.4,654.97,0.30535749]
[1740081930732,3.03812508,655.39,654.97,0.30535749]
[1740081930933,1.554,655.79,654.97,0.30535749]